[Event "Titled Tuesday Blitz May 23 Early 2023"]
[White "Nagare Kaivalya Sandip"]
[Black "Marcziter, Dmitrii"]
[WhiteFideId "25957929"]
[BlackFideId "13900765"]
[WhiteElo "2024"]
[BlackElo "2162"]
[Result "1-0"]
[Round "02"]
[TimeControl "180+2"]
[Date "2023.05.23"]
[WhiteClock "0:01:34"]
[BlackClock "0:01:20"]

1. e4 {[%clk 0:02:56]}  c5 {[%clk 0:02:59]} 2. Nf3 {[%clk 0:02:54]}  a6 {[%clk 0:02:58]} 3. c3 {[%clk 0:02:53]}  d5 {[%clk 0:02:58]} 4. e5 {[%clk 0:02:51]}  Nc6 {[%clk 0:02:57]} 5. d4 {[%clk 0:02:52]}  Bg4 {[%clk 0:02:57]} 6. Be2 {[%clk 0:02:50]}  e6 {[%clk 0:02:57]} 7. O-O {[%clk 0:02:50]}  Qb6 {[%clk 0:02:57]} 8. Nbd2 {[%clk 0:02:43]}  Nh6 {[%clk 0:02:50]} 9. h3 {[%clk 0:02:41]}  Bf5 {[%clk 0:02:45]} 10. dxc5 {[%clk 0:02:40]}  Bxc5 {[%clk 0:02:43]} 11. Nb3 {[%clk 0:02:41]}  Be7 {[%clk 0:02:40]} 12. Bxh6 {[%clk 0:02:40]}  gxh6 {[%clk 0:02:40]} 13. Qd2 {[%clk 0:02:41]}  Bf8 {[%clk 0:02:38]} 14. Nfd4 {[%clk 0:02:40]}  Bg6 {[%clk 0:02:37]} 15. Kh1 {[%clk 0:02:36]}  Rg8 {[%clk 0:02:28]} 16. f4 {[%clk 0:02:35]}  Be4 {[%clk 0:02:27]} 17. Bf3 {[%clk 0:02:35]}  Bxf3 {[%clk 0:02:27]} 18. Rxf3 {[%clk 0:02:35]}  h5 {[%clk 0:02:25]} 19. Qe2 {[%clk 0:02:26]}  h4 {[%clk 0:02:24]} 20. f5 {[%clk 0:02:26]}  O-O-O {[%clk 0:02:20]} 21. fxe6 {[%clk 0:02:24]}  Nxd4 {[%clk 0:02:20]} 22. Nxd4 {[%clk 0:02:20]}  fxe6 {[%clk 0:02:18]} 23. Rf6 {[%clk 0:02:20]}  Re8 {[%clk 0:02:18]} 24. Qh5 {[%clk 0:02:16]}  Bc5 {[%clk 0:02:14]} 25. Qf7 {[%clk 0:02:05]}  Bxd4 {[%clk 0:02:05]} 26. cxd4 {[%clk 0:02:04]}  Kb8 {[%clk 0:02:03]} 27. Qd7 {[%clk 0:01:49]}  Qc7 {[%clk 0:01:57]} 28. Qxc7+ {[%clk 0:01:47]}  Kxc7 {[%clk 0:01:56]} 29. Rf7+ {[%clk 0:01:48]}  Kb6 {[%clk 0:01:53]} 30. Rxh7 {[%clk 0:01:49]}  Rh8 {[%clk 0:01:50]} 31. Rxh8 {[%clk 0:01:49]}  Rxh8 {[%clk 0:01:50]} 32. g4 {[%clk 0:01:49]}  hxg3 {[%clk 0:01:48]} 33. Kg2 {[%clk 0:01:49]}  Rh4 {[%clk 0:01:48]} 34. Rd1 {[%clk 0:01:48]}  Re4 {[%clk 0:01:46]} 35. Kxg3 {[%clk 0:01:47]}  Re2 {[%clk 0:01:46]} 36. h4 {[%clk 0:01:47]}  Rxb2 {[%clk 0:01:45]} 37. h5 {[%clk 0:01:47]}  Rxa2 {[%clk 0:01:38]} 38. h6 {[%clk 0:01:47]}  Rc2 {[%clk 0:01:37]} 39. Rb1+ {[%clk 0:01:45]}  Ka7 {[%clk 0:01:33]} 40. h7 {[%clk 0:01:42]}  Rc8 {[%clk 0:01:33]} 41. Kg4 {[%clk 0:01:43]}  Rh8 {[%clk 0:01:30]} 42. Rh1 {[%clk 0:01:41]}  b5 {[%clk 0:01:29]} 43. Kg5 {[%clk 0:01:40]}  b4 {[%clk 0:01:29]} 44. Kf6 {[%clk 0:01:36]}  a5 {[%clk 0:01:28]} 45. Kxe6 {[%clk 0:01:36]}  b3 {[%clk 0:01:27]} 46. Kxd5 {[%clk 0:01:29]}  Kb6 {[%clk 0:01:24]} 47. Kc4 {[%clk 0:01:28]}  a4 {[%clk 0:01:20]} 48. Kb4 {[%clk 0:01:28]}  Kc6 {[%clk 0:01:20]} 49. Kxa4 {[%clk 0:01:27]}  Kd5 {[%clk 0:01:19]} 50. Kxb3 {[%clk 0:01:25]}  Kxd4 {[%clk 0:01:20]} 51. e6 {[%clk 0:01:26]}  Ke5 {[%clk 0:01:16]} 52. e7 {[%clk 0:01:25]}  Kf6 {[%clk 0:01:17]} 53. e8=Q {[%clk 0:01:25]}  Rxe8 {[%clk 0:01:17]} 54. h8=Q+ {[%clk 0:01:25]}  Rxh8 {[%clk 0:01:18]} 55. Rxh8 {[%clk 0:01:25]}  Kg7 {[%clk 0:01:18]} 56. Rc8 {[%clk 0:01:25]}  Kf6 {[%clk 0:01:18]} 57. Rc6+ {[%clk 0:01:26]}  Ke5 {[%clk 0:01:18]} 58. Kc4 {[%clk 0:01:27]}  Kf5 {[%clk 0:01:18]} 59. Kd4 {[%clk 0:01:28]}  Kf4 {[%clk 0:01:19]} 60. Rf6+ {[%clk 0:01:28]}  Kg5 {[%clk 0:01:19]} 61. Ke5 {[%clk 0:01:28]}  Kg4 {[%clk 0:01:19]} 62. Rf5 {[%clk 0:01:29]}  Kg3 {[%clk 0:01:19]} 63. Rf4 {[%clk 0:01:29]}  Kg2 {[%clk 0:01:18]} 64. Ke4 {[%clk 0:01:30]}  Kg1 {[%clk 0:01:19]} 65. Ke3 {[%clk 0:01:31]}  Kg2 {[%clk 0:01:19]} 66. Rf3 {[%clk 0:01:31]}  Kg1 {[%clk 0:01:19]} 67. Rf2 {[%clk 0:01:31]}  Kh1 {[%clk 0:01:19]} 68. Kf3 {[%clk 0:01:32]}  Kg1 {[%clk 0:01:19]} 69. Kg3 {[%clk 0:01:33]}  Kh1 {[%clk 0:01:20]} 70. Rf1# {[%clk 0:01:34]} 1-0


[Site "https://www.chess.com"]

[Event "Titled Tuesday Blitz May 23 Early 2023"]
[White "Avalos Parra, Joao"]
[Black "Gubajdullin, Alexei"]
[WhiteFideId "3402541"]
[BlackFideId "4141202"]
[WhiteElo "2173"]
[BlackElo "2279"]
[Result "0-1"]
[Round "02"]
[TimeControl "180+2"]
[Date "2023.05.23"]
[WhiteClock "0:00:00"]
[BlackClock "0:00:52"]

1. d4 {[%clk 0:03:00]}  Nf6 {[%clk 0:02:58]} 2. c4 {[%clk 0:03:00]}  g6 {[%clk 0:02:58]} 3. Nc3 {[%clk 0:02:57]}  Bg7 {[%clk 0:02:58]} 4. e4 {[%clk 0:02:58]}  O-O {[%clk 0:02:59]} 5. Be2 {[%clk 0:02:54]}  d6 {[%clk 0:02:58]} 6. Be3 {[%clk 0:02:54]}  Na6 {[%clk 0:02:58]} 7. Nf3 {[%clk 0:02:45]}  c5 {[%clk 0:02:57]} 8. d5 {[%clk 0:02:29]}  e6 {[%clk 0:02:56]} 9. h3 {[%clk 0:02:29]}  exd5 {[%clk 0:02:56]} 10. cxd5 {[%clk 0:02:30]}  Re8 {[%clk 0:02:55]} 11. Nd2 {[%clk 0:02:30]}  Nc7 {[%clk 0:02:55]} 12. a4 {[%clk 0:02:29]}  b6 {[%clk 0:02:49]} 13. O-O {[%clk 0:02:30]}  Ba6 {[%clk 0:02:47]} 14. Bb5 {[%clk 0:02:25]}  Bxb5 {[%clk 0:02:46]} 15. axb5 {[%clk 0:02:25]}  Qd7 {[%clk 0:02:46]} 16. Qb3 {[%clk 0:02:14]}  Nh5 {[%clk 0:02:45]} 17. Rfe1 {[%clk 0:02:07]}  Bd4 {[%clk 0:02:45]} 18. Ra4 {[%clk 0:01:46]}  Bxc3 {[%clk 0:02:43]} 19. bxc3 {[%clk 0:01:43]}  Qxb5 {[%clk 0:02:42]} 20. Qa2 {[%clk 0:01:39]}  a5 {[%clk 0:02:35]} 21. Rb1 {[%clk 0:01:36]}  Qa6 {[%clk 0:02:34]} 22. c4 {[%clk 0:01:34]}  Rab8 {[%clk 0:02:24]} 23. Bg5 {[%clk 0:01:25]}  f6 {[%clk 0:02:23]} 24. Bh6 {[%clk 0:01:18]}  Qc8 {[%clk 0:02:20]} 25. Qb2 {[%clk 0:01:14]}  b5 {[%clk 0:02:00]} 26. Rxa5 {[%clk 0:01:08]}  bxc4 {[%clk 0:02:00]} 27. Qxb8 {[%clk 0:01:01]}  Qxb8 {[%clk 0:01:59]} 28. Rxb8 {[%clk 0:01:02]}  Rxb8 {[%clk 0:01:59]} 29. Nxc4 {[%clk 0:01:03]}  Ne8 {[%clk 0:01:58]} 30. Ra7 {[%clk 0:00:57]}  Rb4 {[%clk 0:01:52]} 31. Nd2 {[%clk 0:00:47]}  g5 {[%clk 0:01:39]} 32. h4 {[%clk 0:00:40]}  gxh4 {[%clk 0:01:35]} 33. Re7 {[%clk 0:00:33]}  Nhg7 {[%clk 0:01:28]} 34. Nf1 {[%clk 0:00:16]}  c4 {[%clk 0:01:24]} 35. Ne3 {[%clk 0:00:17]}  c3 {[%clk 0:01:24]} 36. Ng4 {[%clk 0:00:12]}  c2 {[%clk 0:01:20]} 37. Kh2 {[%clk 0:00:10]}  Rb1 {[%clk 0:01:12]} 38. Nxf6+ {[%clk 0:00:06]}  Nxf6 {[%clk 0:00:59]} 39. Rxg7+ {[%clk 0:00:07]}  Kh8 {[%clk 0:00:58]} 40. Rg5 {[%clk 0:00:03]}  c1=Q {[%clk 0:00:53]} 41. Bg7+ {[%clk 0:00:04]}  Kg8 {[%clk 0:00:53]} 42. Bxf6+ {[%clk 0:00:00]}  Kf7 {[%clk 0:00:52]} 0-1


[Site "https://www.chess.com"]

[Event "Titled Tuesday Blitz May 23 Early 2023"]
[White "Gutkin, Ilya"]
[Black "Fantinel, Thibault"]
[WhiteFideId "16203470"]
[BlackFideId "663395"]
[WhiteElo "2265"]
[BlackElo "2316"]
[Result "1-0"]
[Round "02"]
[TimeControl "180+2"]
[Date "2023.05.23"]
[WhiteClock "0:00:14"]
[BlackClock "0:00:04"]

1. Nf3 {[%clk 0:03:00]}  Nf6 {[%clk 0:02:58]} 2. g3 {[%clk 0:02:52]}  b6 {[%clk 0:02:59]} 3. Bg2 {[%clk 0:02:52]}  Bb7 {[%clk 0:03:00]} 4. c4 {[%clk 0:02:52]}  g6 {[%clk 0:03:00]} 5. b3 {[%clk 0:02:51]}  Bg7 {[%clk 0:02:58]} 6. Bb2 {[%clk 0:02:52]}  O-O {[%clk 0:02:59]} 7. O-O {[%clk 0:02:52]}  e6 {[%clk 0:02:49]} 8. d4 {[%clk 0:02:43]}  d5 {[%clk 0:02:45]} 9. Ne5 {[%clk 0:02:43]}  Nbd7 {[%clk 0:02:26]} 10. Qc2 {[%clk 0:02:37]}  c5 {[%clk 0:02:15]} 11. Rd1 {[%clk 0:02:34]}  cxd4 {[%clk 0:02:11]} 12. Nxd7 {[%clk 0:02:32]}  Qxd7 {[%clk 0:02:09]} 13. Bxd4 {[%clk 0:02:31]}  Rac8 {[%clk 0:01:39]} 14. Qb2 {[%clk 0:02:30]}  dxc4 {[%clk 0:01:37]} 15. Bxb7 {[%clk 0:02:29]}  c3 {[%clk 0:01:21]} 16. Bxc8 {[%clk 0:01:43]}  cxb2 {[%clk 0:01:20]} 17. Bxd7 {[%clk 0:01:42]}  Nxd7 {[%clk 0:00:56]} 18. Bxb2 {[%clk 0:01:28]}  Bxb2 {[%clk 0:00:57]} 19. Rxd7 {[%clk 0:01:28]}  Bxa1 {[%clk 0:00:57]} 20. Rxa7 {[%clk 0:01:26]}  Rd8 {[%clk 0:00:51]} 21. Na3 {[%clk 0:01:14]}  Rd2 {[%clk 0:00:50]} 22. Kf1 {[%clk 0:00:50]}  Rxa2 {[%clk 0:00:16]} 23. Nb5 {[%clk 0:00:50]}  Rxa7 {[%clk 0:00:17]} 24. Nxa7 {[%clk 0:00:51]}  Kf8 {[%clk 0:00:16]} 25. e3 {[%clk 0:00:44]}  Ke8 {[%clk 0:00:15]} 26. Nc8 {[%clk 0:00:43]}  Kd7 {[%clk 0:00:12]} 27. Nxb6+ {[%clk 0:00:43]}  Kc6 {[%clk 0:00:13]} 28. Nc4 {[%clk 0:00:41]}  Kc5 {[%clk 0:00:13]} 29. Ke2 {[%clk 0:00:37]}  Kb4 {[%clk 0:00:13]} 30. Nd6 {[%clk 0:00:32]}  f5 {[%clk 0:00:11]} 31. Nb7 {[%clk 0:00:20]}  Be5 {[%clk 0:00:09]} 32. Kd3 {[%clk 0:00:19]}  Kxb3 {[%clk 0:00:05]} 33. Nc5+ {[%clk 0:00:18]}  Kb4 {[%clk 0:00:06]} 34. Nxe6 {[%clk 0:00:19]}  Bd6 {[%clk 0:00:06]} 35. Kd4 {[%clk 0:00:18]}  Kb5 {[%clk 0:00:06]} 36. Kd5 {[%clk 0:00:18]}  Bb4 {[%clk 0:00:07]} 37. f3 {[%clk 0:00:17]}  Be1 {[%clk 0:00:06]} 38. e4 {[%clk 0:00:17]}  fxe4 {[%clk 0:00:07]} 39. fxe4 {[%clk 0:00:18]}  Bf2 {[%clk 0:00:07]} 40. e5 {[%clk 0:00:17]}  Kb6 {[%clk 0:00:08]} 41. Kd6 {[%clk 0:00:17]}  Bg1 {[%clk 0:00:08]} 42. h3 {[%clk 0:00:17]}  Bh2 {[%clk 0:00:09]} 43. g4 {[%clk 0:00:17]}  h5 {[%clk 0:00:10]} 44. gxh5 {[%clk 0:00:17]}  gxh5 {[%clk 0:00:11]} 45. Ng7 {[%clk 0:00:17]}  h4 {[%clk 0:00:10]} 46. Nf5 {[%clk 0:00:18]}  Bg3 {[%clk 0:00:11]} 47. Nd4 {[%clk 0:00:14]}  Kb7 {[%clk 0:00:10]} 48. Nf3 {[%clk 0:00:12]}  Kc8 {[%clk 0:00:10]} 49. Ke7 {[%clk 0:00:12]}  Kc7 {[%clk 0:00:09]} 50. e6 {[%clk 0:00:12]}  Bf2 {[%clk 0:00:08]} 51. Kf7 {[%clk 0:00:12]}  Bc5 {[%clk 0:00:05]} 52. e7 {[%clk 0:00:13]}  Bxe7 {[%clk 0:00:05]} 53. Kxe7 {[%clk 0:00:14]}  Kc6 {[%clk 0:00:05]} 54. Ke6 {[%clk 0:00:14]}  Kc7 {[%clk 0:00:05]} 55. Nxh4 {[%clk 0:00:14]}  Kd8 {[%clk 0:00:06]} 56. Ng6 {[%clk 0:00:14]}  Ke8 {[%clk 0:00:04]} 57. h4 {[%clk 0:00:14]} 1-0


[Site "https://www.chess.com"]

[Event "Titled Tuesday Blitz May 23 Early 2023"]
[White "Dishman, Stephen"]
[Black "Principe, Gerson"]
[WhiteFideId "403024"]
[BlackFideId "3804550"]
[WhiteElo "2204"]
[BlackElo "2229"]
[Result "1-0"]
[Round "02"]
[TimeControl "180+2"]
[Date "2023.05.23"]
[WhiteClock "0:02:03"]
[BlackClock "0:02:00"]

1. c4 {[%clk 0:03:00]}  e6 {[%clk 0:02:58]} 2. Nf3 {[%clk 0:02:59]}  Nf6 {[%clk 0:02:58]} 3. g3 {[%clk 0:02:59]}  b6 {[%clk 0:02:58]} 4. Bg2 {[%clk 0:02:59]}  Bb7 {[%clk 0:02:59]} 5. O-O {[%clk 0:02:59]}  Be7 {[%clk 0:02:59]} 6. Nc3 {[%clk 0:02:58]}  O-O {[%clk 0:02:59]} 7. b3 {[%clk 0:02:57]}  d5 {[%clk 0:02:59]} 8. e3 {[%clk 0:02:49]}  dxc4 {[%clk 0:02:56]} 9. bxc4 {[%clk 0:02:49]}  c5 {[%clk 0:02:56]} 10. Qe2 {[%clk 0:02:45]}  Nc6 {[%clk 0:02:56]} 11. Bb2 {[%clk 0:02:37]}  Rc8 {[%clk 0:02:55]} 12. Rfd1 {[%clk 0:02:36]}  Qc7 {[%clk 0:02:54]} 13. Rac1 {[%clk 0:02:34]}  Rfd8 {[%clk 0:02:53]} 14. d4 {[%clk 0:02:28]}  Na5 {[%clk 0:02:52]} 15. Nb5 {[%clk 0:02:26]}  Qb8 {[%clk 0:02:50]} 16. dxc5 {[%clk 0:02:16]}  Rxd1+ {[%clk 0:02:40]} 17. Rxd1 {[%clk 0:02:15]}  Rxc5 {[%clk 0:02:32]} 18. Ba3 {[%clk 0:02:03]}  Rxb5 {[%clk 0:02:00]} 19. Bxe7 {[%clk 0:02:03]} 1-0


[Site "https://www.chess.com"]

[Event "Titled Tuesday Blitz May 23 Early 2023"]
[White "Mortazavi, Ali"]
[Black "littlepillow2010"]
[WhiteFideId "401323"]
[WhiteElo "2339"]
[BlackElo "2338"]
[Result "1-0"]
[Round "02"]
[TimeControl "180+2"]
[Date "2023.05.23"]
[WhiteClock "0:00:33"]
[BlackClock "0:00:00"]

1. Nf3 {[%clk 0:03:00]}  d5 {[%clk 0:02:56]} 2. g3 {[%clk 0:03:01]}  c5 {[%clk 0:02:55]} 3. Bg2 {[%clk 0:03:01]}  Nc6 {[%clk 0:02:56]} 4. O-O {[%clk 0:03:02]}  Nf6 {[%clk 0:02:54]} 5. d3 {[%clk 0:02:38]}  g6 {[%clk 0:02:51]} 6. Nbd2 {[%clk 0:02:37]}  Bg7 {[%clk 0:02:51]} 7. e3 {[%clk 0:02:37]}  O-O {[%clk 0:02:51]} 8. e4 {[%clk 0:02:38]}  dxe4 {[%clk 0:02:41]} 9. dxe4 {[%clk 0:02:38]}  Qc7 {[%clk 0:02:42]} 10. Re1 {[%clk 0:02:32]}  Rd8 {[%clk 0:02:35]} 11. h3 {[%clk 0:02:25]}  b6 {[%clk 0:02:30]} 12. a4 {[%clk 0:02:15]}  e5 {[%clk 0:02:27]} 13. c3 {[%clk 0:02:13]}  Ba6 {[%clk 0:02:23]} 14. Qb3 {[%clk 0:02:02]}  Na5 {[%clk 0:02:17]} 15. Qa2 {[%clk 0:02:02]}  c4 {[%clk 0:02:15]} 16. Nf1 {[%clk 0:01:56]}  Rac8 {[%clk 0:01:40]} 17. Rb1 {[%clk 0:01:56]}  Rd7 {[%clk 0:01:28]} 18. Bg5 {[%clk 0:01:56]}  h6 {[%clk 0:01:16]} 19. Bxf6 {[%clk 0:01:56]}  Bxf6 {[%clk 0:01:16]} 20. Ne3 {[%clk 0:01:56]}  Bb7 {[%clk 0:01:17]} 21. Nh2 {[%clk 0:01:45]}  Rcd8 {[%clk 0:01:14]} 22. Nd5 {[%clk 0:01:40]}  Bxd5 {[%clk 0:00:57]} 23. exd5 {[%clk 0:01:41]}  Bg7 {[%clk 0:00:57]} 24. Rbd1 {[%clk 0:01:39]}  Nb3 {[%clk 0:00:55]} 25. Qb1 {[%clk 0:01:37]}  Nc5 {[%clk 0:00:53]} 26. Bf1 {[%clk 0:01:17]}  Nxa4 {[%clk 0:00:48]} 27. Bg2 {[%clk 0:01:06]}  Nc5 {[%clk 0:00:35]} 28. Ng4 {[%clk 0:01:03]}  f5 {[%clk 0:00:24]} 29. Ne3 {[%clk 0:01:03]}  e4 {[%clk 0:00:18]} 30. Nxc4 {[%clk 0:00:58]}  Rxd5 {[%clk 0:00:09]} 31. Rxd5 {[%clk 0:00:59]}  Rxd5 {[%clk 0:00:10]} 32. Qa2 {[%clk 0:00:59]}  Qf7 {[%clk 0:00:08]} 33. Ne3 {[%clk 0:00:50]}  Rd7 {[%clk 0:00:08]} 34. Qb1 {[%clk 0:00:49]}  Nd3 {[%clk 0:00:06]} 35. Rd1 {[%clk 0:00:49]}  Kh7 {[%clk 0:00:05]} 36. h4 {[%clk 0:00:45]}  Ne5 {[%clk 0:00:05]} 37. h5 {[%clk 0:00:41]}  g5 {[%clk 0:00:04]} 38. Rxd7 {[%clk 0:00:40]}  Qxd7 {[%clk 0:00:05]} 39. Nxf5 {[%clk 0:00:41]}  Qd3 {[%clk 0:00:02]} 40. Bxe4 {[%clk 0:00:39]}  Qxb1+ {[%clk 0:00:02]} 41. Bxb1 {[%clk 0:00:40]}  Kg8 {[%clk 0:00:03]} 42. f4 {[%clk 0:00:36]}  gxf4 {[%clk 0:00:04]} 43. gxf4 {[%clk 0:00:37]}  Nf3+ {[%clk 0:00:02]} 44. Kf2 {[%clk 0:00:36]}  Nd2 {[%clk 0:00:03]} 45. Ba2+ {[%clk 0:00:36]}  Kf8 {[%clk 0:00:03]} 46. Nd6 {[%clk 0:00:34]}  Bf6 {[%clk 0:00:00]} 47. Ke2 {[%clk 0:00:33]} 1-0


[Site "https://www.chess.com"]

[Event "Titled Tuesday Blitz May 23 Early 2023"]
[White "Kim, Sergey"]
[Black "Ovezdurdyyeva, Jemal"]
[WhiteFideId "13700570"]
[BlackFideId "14001888"]
[WhiteElo "2583"]
[BlackElo "2043"]
[Result "0-1"]
[Round "02"]
[TimeControl "180+2"]
[Date "2023.05.23"]
[WhiteClock "0:00:00"]
[BlackClock "0:00:04"]

1. d4 {[%clk 0:03:00]}  Nf6 {[%clk 0:02:59]} 2. c4 {[%clk 0:03:01]}  e6 {[%clk 0:02:59]} 3. Nc3 {[%clk 0:03:01]}  d5 {[%clk 0:02:59]} 4. Nf3 {[%clk 0:02:59]}  Bb4 {[%clk 0:02:55]} 5. e3 {[%clk 0:02:58]}  O-O {[%clk 0:02:55]} 6. Bd3 {[%clk 0:02:58]}  c6 {[%clk 0:02:51]} 7. O-O {[%clk 0:02:58]}  Nbd7 {[%clk 0:02:50]} 8. Qc2 {[%clk 0:02:54]}  Qe7 {[%clk 0:02:44]} 9. a3 {[%clk 0:02:49]}  Ba5 {[%clk 0:02:44]} 10. b4 {[%clk 0:02:45]}  Bc7 {[%clk 0:02:43]} 11. e4 {[%clk 0:02:46]}  e5 {[%clk 0:02:40]} 12. exd5 {[%clk 0:02:19]}  exd4 {[%clk 0:02:40]} 13. Re1 {[%clk 0:02:15]}  Ne5 {[%clk 0:02:26]} 14. Nxe5 {[%clk 0:02:14]}  Bxe5 {[%clk 0:02:25]} 15. f4 {[%clk 0:02:14]}  dxc3 {[%clk 0:02:23]} 16. fxe5 {[%clk 0:02:14]}  Ng4 {[%clk 0:02:23]} 17. Bf4 {[%clk 0:01:54]}  Qh4 {[%clk 0:01:51]} 18. Bg3 {[%clk 0:01:38]}  Qh5 {[%clk 0:01:41]} 19. Qxc3 {[%clk 0:01:34]}  Bd7 {[%clk 0:01:14]} 20. Qd4 {[%clk 0:01:28]}  Rfe8 {[%clk 0:01:02]} 21. Qe4 {[%clk 0:01:06]}  Rad8 {[%clk 0:00:42]} 22. h3 {[%clk 0:01:03]}  cxd5 {[%clk 0:00:41]} 23. cxd5 {[%clk 0:01:03]}  Nf6 {[%clk 0:00:40]} 24. Qd4 {[%clk 0:00:54]}  Nxd5 {[%clk 0:00:39]} 25. Qxd5 {[%clk 0:00:46]}  Bf5 {[%clk 0:00:39]} 26. Qxb7 {[%clk 0:00:30]}  Rxd3 {[%clk 0:00:39]} 27. Kh2 {[%clk 0:00:30]}  Bxh3 {[%clk 0:00:19]} 28. gxh3 {[%clk 0:00:25]}  Rd2+ {[%clk 0:00:19]} 29. Kg1 {[%clk 0:00:22]}  Qxh3 {[%clk 0:00:20]} 30. Qf3 {[%clk 0:00:20]}  h5 {[%clk 0:00:18]} 31. Re3 {[%clk 0:00:15]}  Re6 {[%clk 0:00:17]} 32. Qh1 {[%clk 0:00:11]}  Qg4 {[%clk 0:00:09]} 33. Qa8+ {[%clk 0:00:11]}  Kh7 {[%clk 0:00:07]} 34. Qe4+ {[%clk 0:00:11]}  Qxe4 {[%clk 0:00:07]} 35. Rxe4 {[%clk 0:00:12]}  Rg6 {[%clk 0:00:08]} 36. Re3 {[%clk 0:00:10]}  h4 {[%clk 0:00:08]} 37. Rf1 {[%clk 0:00:10]}  hxg3 {[%clk 0:00:06]} 38. Rxf7 {[%clk 0:00:09]}  g2 {[%clk 0:00:06]} 39. Re1 {[%clk 0:00:00]}  Rh6 {[%clk 0:00:04]} 0-1


[Site "https://www.chess.com"]

[Event "Titled Tuesday Blitz May 23 Early 2023"]
[White "Lorenzo De La Riva, Lazaro"]
[Black "Vargas, Gabriela"]
[WhiteFideId "2268809"]
[BlackFideId "3700860"]
[WhiteElo "2294"]
[BlackElo "2057"]
[Result "0-1"]
[Round "02"]
[TimeControl "180+2"]
[Date "2023.05.23"]
[WhiteClock "0:00:17"]
[BlackClock "0:00:41"]

1. e4 {[%clk 0:03:00]}  e6 {[%clk 0:02:56]} 2. d4 {[%clk 0:02:59]}  d5 {[%clk 0:02:54]} 3. Nc3 {[%clk 0:03:00]}  Nf6 {[%clk 0:02:53]} 4. e5 {[%clk 0:02:58]}  Nfd7 {[%clk 0:02:53]} 5. Qg4 {[%clk 0:02:58]}  c5 {[%clk 0:02:51]} 6. Nb5 {[%clk 0:02:58]}  cxd4 {[%clk 0:02:42]} 7. f4 {[%clk 0:02:57]}  Nc6 {[%clk 0:02:38]} 8. Nf3 {[%clk 0:02:55]}  h5 {[%clk 0:02:36]} 9. Qg3 {[%clk 0:02:55]}  a6 {[%clk 0:02:32]} 10. Nd6+ {[%clk 0:02:49]}  Bxd6 {[%clk 0:02:32]} 11. Qxg7 {[%clk 0:02:45]}  Rf8 {[%clk 0:02:27]} 12. exd6 {[%clk 0:02:44]}  Qf6 {[%clk 0:02:26]} 13. Qh7 {[%clk 0:02:35]}  e5 {[%clk 0:02:24]} 14. fxe5 {[%clk 0:02:25]}  Ndxe5 {[%clk 0:02:22]} 15. Qxh5 {[%clk 0:02:15]}  Bg4 {[%clk 0:02:11]} 16. Qh7 {[%clk 0:01:54]}  Nxf3+ {[%clk 0:01:41]} 17. gxf3 {[%clk 0:01:55]}  Bxf3 {[%clk 0:01:40]} 18. d7+ {[%clk 0:01:49]}  Kxd7 {[%clk 0:01:33]} 19. Bh3+ {[%clk 0:01:49]}  Kc7 {[%clk 0:01:29]} 20. Bf5 {[%clk 0:00:58]}  Rae8+ {[%clk 0:01:13]} 21. Kf1 {[%clk 0:00:53]}  Bxh1 {[%clk 0:01:12]} 22. Bf4+ {[%clk 0:00:52]}  Kb6 {[%clk 0:01:09]} 23. Qh3 {[%clk 0:00:46]}  Be4 {[%clk 0:00:56]} 24. Bxe4 {[%clk 0:00:21]}  Rxe4 {[%clk 0:00:52]} 25. Qb3+ {[%clk 0:00:20]}  Ka7 {[%clk 0:00:52]} 26. Qa3 {[%clk 0:00:20]}  Qxf4+ {[%clk 0:00:51]} 27. Kg1 {[%clk 0:00:20]}  Rg8+ {[%clk 0:00:51]} 28. Kh1 {[%clk 0:00:21]}  Re2 {[%clk 0:00:43]} 29. Qc5+ {[%clk 0:00:20]}  b6 {[%clk 0:00:42]} 30. Qxd5 {[%clk 0:00:17]}  Qxh2# {[%clk 0:00:41]} 0-1


[Site "https://www.chess.com"]

[Event "Titled Tuesday Blitz May 23 Early 2023"]
[White "Nikologorskiy, Konstantin"]
[Black "chessjazda"]
[WhiteFideId "24111708"]
[WhiteElo "2273"]
[BlackElo "2328"]
[Result "1-0"]
[Round "02"]
[TimeControl "180+2"]
[Date "2023.05.23"]
[WhiteClock "0:01:17"]
[BlackClock "0:01:51"]

1. d4 {[%clk 0:02:57]}  d6 {[%clk 0:02:59]} 2. c4 {[%clk 0:02:58]}  c6 {[%clk 0:02:58]} 3. Nf3 {[%clk 0:02:58]}  Qc7 {[%clk 0:02:58]} 4. Nc3 {[%clk 0:02:58]}  f5 {[%clk 0:02:55]} 5. e4 {[%clk 0:02:53]}  fxe4 {[%clk 0:02:55]} 6. Nxe4 {[%clk 0:02:54]}  Nf6 {[%clk 0:02:56]} 7. Nxf6+ {[%clk 0:02:54]}  exf6 {[%clk 0:02:55]} 8. Bd3 {[%clk 0:02:54]}  Bg4 {[%clk 0:02:53]} 9. O-O {[%clk 0:02:53]}  Be7 {[%clk 0:02:53]} 10. Re1 {[%clk 0:02:45]}  O-O {[%clk 0:02:53]} 11. Qc2 {[%clk 0:02:45]}  Bxf3 {[%clk 0:02:53]} 12. Bxh7+ {[%clk 0:02:45]}  Kh8 {[%clk 0:02:53]} 13. gxf3 {[%clk 0:02:46]}  f5 {[%clk 0:02:31]} 14. Bxf5 {[%clk 0:02:44]}  Bf6 {[%clk 0:02:31]} 15. Bg6 {[%clk 0:02:26]}  Qd7 {[%clk 0:02:27]} 16. Qe4 {[%clk 0:02:15]}  Na6 {[%clk 0:02:25]} 17. Be3 {[%clk 0:02:05]}  Qh3 {[%clk 0:02:15]} 18. Qg4 {[%clk 0:02:00]}  Qh4 {[%clk 0:02:11]} 19. Kg2 {[%clk 0:01:41]}  Nc7 {[%clk 0:02:09]} 20. Re2 {[%clk 0:01:35]}  d5 {[%clk 0:02:07]} 21. c5 {[%clk 0:01:31]}  Nb5 {[%clk 0:02:07]} 22. Rd1 {[%clk 0:01:26]}  Rad8 {[%clk 0:02:04]} 23. a4 {[%clk 0:01:25]}  Nc7 {[%clk 0:02:04]} 24. Rde1 {[%clk 0:01:25]}  b6 {[%clk 0:01:57]} 25. Bf4 {[%clk 0:01:25]}  Na6 {[%clk 0:01:54]} 26. Bd6 {[%clk 0:01:15]}  Qxg4+ {[%clk 0:01:54]} 27. fxg4 {[%clk 0:01:16]}  Bxd4 {[%clk 0:01:54]} 28. Bxf8 {[%clk 0:01:16]}  Rxf8 {[%clk 0:01:54]} 29. Re8 {[%clk 0:01:16]}  Kg8 {[%clk 0:01:50]} 30. Rxf8+ {[%clk 0:01:16]}  Kxf8 {[%clk 0:01:51]} 31. Re8# {[%clk 0:01:17]} 1-0


[Site "https://www.chess.com"]